[Event "Mitropa Online Cup Women 2021"]
[Site "Hybrid"]
[Date "2021.05.04"]
[Round "9.2"]
[White "Hapala, Elisabeth"]
[Black "Raccanello, Marianna"]
[Result "1-0"]
[ECO "B41"]
[WhiteElo "2120"]
[BlackElo "2140"]
[Annotator "NA"]
[PlyCount "149"]
[EventDate "2021.05.04"]
[EventType "team-tourn"]
[EventCountry "NET"]
[SourceTitle "playchess.com"]
[Source "ChessBase"]
[SourceQuality "1"]
[WhiteTeam "Austria"]
[BlackTeam "Italy"]
[WhiteTeamCountry "AUT"]
[BlackTeamCountry "ITA"]
[TimeControl "40/5400+30:1800+30"]

1. e4 {[%emt 0:00:00]} c5 {[%emt 0:00:19]} 2. Nf3 {[%emt 0:00:04]} e6 {[%emt 0:00:08]} 3. d4 {[%emt 0:00:03]} cxd4 {[%emt 0:00:05]} 4. Nxd4 {[%emt 0:00:02]} a6 {[%emt 0:00:06]} 5. c4 {[%emt 0:00:06]} Nf6 {[%emt 0:00:08]} 6. Nc3 {[%emt 0:00:03]} Qc7 {[%emt 0:00:09]} 7. Be2 {[%emt 0:00:04]} Nc6 {[%emt 0:00:30]} 8. O-O {[%emt 0:10:25]} Nxd4 {[%emt 0:05:42]} 9. Qxd4 {[%emt 0:00:04]} Bc5 {[%emt 0:00:08]} 10. Qd3 {[%emt 0:01:08]} b6 {[%emt 0:03:58]} 11. a3 {[%emt 0:12:29]} Bb7 {[%emt 0:02:38]} 12. b4 {[%emt 0:00:58]} Be7 {[%emt 0:00:26]} 13. f4 {[%emt 0:01:59]} d6 {[%emt 0:00:23]} 14. Bb2 {[%emt 0:06:52]} Nd7 {[%emt 0:08:59]} 15. Rac1 {[%emt 0:14:05]} O-O {[%emt 0:07:19]} 16. Qg3 {[%emt 0:03:19]} Bf6 {[%emt 0:00:18]} 17. Bd3 {[%emt 0:00:47]} Rac8 {[%emt 0:09:28]} 18. Qh3 {[%emt 0:09:18]} g6 {[%emt 0:03:04]} 19. f5 {[%emt 0:06:57]} Rce8 {[%emt 0:00:55]} 20. fxg6 {[%emt 0:07:09]} fxg6 {[%emt 0:01:07]} 21. Kh1 {[%emt 0:07:16]} Ne5 {[%emt 0:04:43]} 22. Be2 {[%emt 0:00:12]} Qe7 {[%emt 0:04:08]} 23. Na4 {[%emt 0:02:50]} Bxe4 {[%emt 0:07:37]} 24. Nxb6 {[%emt 0:00:07]} Bf5 {[%emt 0:03:01]} 25. Qb3 {[%emt 0:01:00]} Bg5 {[%emt 0:06:37]} 26. Rcd1 {[%emt 0:01:13]} Ng4 {[%emt 0:00:13]} 27. Bxg4 {[%emt 0:02:36]} Bxg4 {[%emt 0:00:08]} 28. Rde1 {[%emt 0:02:15]} Rxf1+ {[%emt 0:00:49]} 29. Rxf1 {[%emt 0:00:04]} Rf8 {[%emt 0:00:08]} 30. Qd3 {[%emt 0:04:14]} Qd8 {[%emt 0:11:33]} 31. Bd4 {[%emt 0:02:41]} e5 {[%emt 0:00:50]} 32. Rxf8+ {[%emt 0:01:09]} Qxf8 {[%emt 0:00:11]} 33. Bg1 {[%emt 0:00:18]} Be6 {[%emt 0:02:32]} 34. Nd5 {[%emt 0:01:35]} Qf7 {[%emt 0:03:01]} 35. a4 {[%emt 0:01:01]} Bf5 {[%emt 0:05:53]} 36. Qg3 {[%emt 0:01:34]} Bd8 {[%emt 0:00:23]} 37. b5 {[%emt 0:01:21]} axb5 {[%emt 0:00:08]} 38. axb5 {[%emt 0:00:03]} Be4 {[%emt 0:02:42]} 39. b6 {[%emt 0:01:22]} Kg7 {[%emt 0:05:51]} 40. Qe3 {[%emt 0:00:00]} Bxd5 {[%emt 0:00:00]} 41. cxd5 {[%emt 0:02:13]} Qxd5 {[%emt 0:01:56]} 42. Qa3 {[%emt 0:09:08]} Qc6 {[%emt 0:13:08]} 43. Qa7+ {[%emt 0:00:52]} Kf6 {[%emt 0:00:20]} 44. b7 {[%emt 0:03:13]} Bc7 {[%emt 0:00:12]} 45. b8=Q {[%emt 0:02:21]} Bxb8 {[%emt 0:00:05]} 46. Qxb8 {[%emt 0:00:02]} Kg7 {[%emt 0:02:54]} 47. h3 {[%emt 0:01:23]} Qd7 {[%emt 0:00:49]} 48. Qa7 {[%emt 0:04:36]} Qxa7 {[%emt 0:00:24]} 49. Bxa7 {[%emt 0:00:03]} d5 {[%emt 0:00:31]} 50. g3 {[%emt 0:01:55]} Kf6 {[%emt 0:00:39]} 51. Kg2 {[%emt 0:00:03]} Kf5 {[%emt 0:03:16]} 52. Kf3 {[%emt 0:00:23]} h5 {[%emt 0:00:18]} 53. Bb6 {[%emt 0:01:15]} Ke6 {[%emt 0:02:21]} 54. Bc7 {[%emt 0:01:19]} Kf5 {[%emt 0:01:02]} 55. Bd8 {[%emt 0:01:31]} Ke6 {[%emt 0:01:24]} 56. Ke3 {[%emt 0:00:06]} Kf5 {[%emt 0:01:08]} 57. Ba5 {[%emt 0:05:26]} g5 {[%emt 0:02:07]} 58. Bd8 {[%emt 0:02:21]} g4 {[%emt 0:00:27]} 59. h4 {[%emt 0:00:56]} Ke6 {[%emt 0:00:31]} 60. Bc7 {[%emt 0:00:08]} Kf5 {[%emt 0:00:27]} 61. Kd3 {[%emt 0:00:08]} Ke6 {[%emt 0:00:35]} 62. Kc3 {[%emt 0:00:40]} Kf5 {[%emt 0:00:07]} 63. Kd3 {[%emt 0:01:23]} Ke6 {[%emt 0:00:07]} 64. Kc3 {[%emt 0:00:02]} Kf5 {[%emt 0:01:03]} 65. Kb4 {[%emt 0:00:10]} Ke4 {[%emt 0:00:10]} 66. Kc5 {[%emt 0:00:09]} d4 {[%emt 0:00:23]} 67. Kc4 {[%emt 0:00:09]} d3 {[%emt 0:06:21]} 68. Kc3 {[%emt 0:00:12]} d2 {[%emt 0:03:42]} 69. Kxd2 {[%emt 0:00:18]} Kd4 {[%emt 0:00:13]} 70. Ke2 {[%emt 0:00:11]} Ke4 {[%emt 0:00:21]} 71. Bb6 {[%emt 0:00:09]} Kd5 {[%emt 0:00:22]} 72. Ke3 {[%emt 0:00:03]} Kc6 {[%emt 0:00:49]} 73. Ba5 {[%emt 0:00:03]} Kd5 {[%emt 0:00:15]} 74. Bc3 {[%emt 0:00:03]} e4 {[%emt 0:00:32]} 75. Bb2 {[%emt 0:00:04]} 1-0

[Event "Mitropa Online Cup Women 2021"]
[Site "Hybrid"]
[Date "2021.05.04"]
[Round "9.2"]
[White "Grimaldi, Angela Flavia"]
[Black "Vicze, Kata"]
[Result "1-0"]
[ECO "B30"]
[WhiteElo "2000"]
[BlackElo "1809"]
[Annotator "NA"]
[PlyCount "65"]
[EventDate "2021.05.04"]
[EventType "team-tourn"]
[EventCountry "NET"]
[SourceTitle "playchess.com"]
[Source "ChessBase"]
[SourceQuality "1"]
[WhiteTeam "Italy"]
[BlackTeam "Austria"]
[WhiteTeamCountry "ITA"]
[BlackTeamCountry "AUT"]
[TimeControl "40/5400+30:1800+30"]

1. e4 {[%emt 0:00:00]} c5 {[%emt 0:00:07]} 2. Nf3 {[%emt 0:00:05]} Nc6 {[%emt 0:00:06]} 3. Bb5 {[%emt 0:00:04]} e6 {[%emt 0:00:07]} 4. O-O {[%emt 0:00:05]} Nge7 {[%emt 0:00:14]} 5. Re1 {[%emt 0:00:03]} a6 {[%emt 0:00:17]} 6. Bf1 {[%emt 0:00:03]} d5 {[%emt 0:00:41]} 7. exd5 {[%emt 0:00:06]} Nxd5 {[%emt 0:00:33]} 8. d4 {[%emt 0:00:04]} cxd4 {[%emt 0:02:40]} 9. Nxd4 {[%emt 0:00:07]} Bc5 {[%emt 0:01:28]} 10. Nxc6 {[%emt 0:02:51]} bxc6 {[%emt 0:01:55]} 11. c4 {[%emt 0:14:39]} Qf6 {[%emt 0:06:59]} 12. Qe2 {[%emt 0:03:56]} Nf4 {[%emt 0:16:10]} 13. Bxf4 {[%emt 0:01:08]} Qxf4 {[%emt 0:00:19]} 14. Nc3 {[%emt 0:00:41]} O-O {[%emt 0:03:22]} 15. g3 {[%emt 0:05:22]} Qc7 {[%emt 0:05:01]} 16. Bg2 {[%emt 0:00:34]} f5 {[%emt 0:05:59]} 17. Kh1 {[%emt 0:08:20]} Bd7 {[%emt 0:05:00]} 18. Rad1 {[%emt 0:19:11]} Rad8 {[%emt 0:07:42]} 19. a3 {[%emt 0:07:46]} Ba7 {[%emt 0:07:22]} 20. b4 {[%emt 0:05:28]} f4 {[%emt 0:05:21]} 21. c5 {[%emt 0:02:01]} fxg3 {[%emt 0:08:40]} 22. hxg3 {[%emt 0:02:53]} Rf6 {[%emt 0:03:01]} 23. Ne4 {[%emt 0:01:39]} Rh6+ {[%emt 0:00:28]} 24. Kg1 {[%emt 0:00:11]} Rf8 {[%emt 0:02:54]} 25. Nd6 {[%emt 0:01:36]} a5 {[%emt 0:02:34]} 26. Qc4 {[%emt 0:02:17]} Kh8 {[%emt 0:02:02]} 27. Rd2 {[%emt 0:01:26]} Qd8 {[%emt 0:02:11]} 28. Nb7 {[%emt 0:08:04]} Qf6 {[%emt 0:01:46]} 29. Qd4 {[%emt 0:01:55]} Be8 {[%emt 0:02:20]} 30. Qxf6 {[%emt 0:00:07]} Rhxf6 {[%emt 0:00:10]} 31. Nxa5 {[%emt 0:00:24]} e5 {[%emt 0:01:37]} 32. Rxe5 {[%emt 0:00:55]} Bb8 {[%emt 0:00:38]} 33. Re7 {[%emt 0:00:35]} 1-0

[Event "Mitropa Online Cup Women 2021"]
[Site "Hybrid"]
[Date "2021.05.04"]
[Round "9.3"]
[White "Terbe, Julianna"]
[Black "Janzelj, Lara"]
[Result "1-0"]
[ECO "D02"]
[WhiteElo "2267"]
[BlackElo "2212"]
[Annotator "NA"]
[PlyCount "149"]
[EventDate "2021.05.04"]
[EventType "team-tourn"]
[EventCountry "NET"]
[SourceTitle "playchess.com"]
[Source "ChessBase"]
[SourceQuality "1"]
[WhiteTeam "Hungary"]
[BlackTeam "Slovenia"]
[WhiteTeamCountry "HUN"]
[BlackTeamCountry "SLO"]
[TimeControl "40/5400+30:1800+30"]

1. d4 {[%emt 0:00:00]} d5 {[%emt 0:00:09]} 2. Nf3 {[%emt 0:00:06]} Nf6 {[%emt 0:00:26]} 3. g3 {[%emt 0:00:07]} e6 {[%emt 0:01:30]} 4. Bg2 {[%emt 0:00:58]} Bd6 {[%emt 0:00:10]} 5. c4 {[%emt 0:03:06]} O-O {[%emt 0:02:37]} 6. O-O {[%emt 0:02:12]} dxc4 {[%emt 0:03:07]} 7. Nfd2 {[%emt 0:06:50]} e5 {[%emt 0:05:50]} 8. dxe5 {[%emt 0:01:17]} Bxe5 {[%emt 0:00:07]} 9. Nxc4 {[%emt 0:00:43]} Bd4 {[%emt 0:01:02]} 10. Qc2 {[%emt 0:06:14]} Qe7 {[%emt 0:02:01]} 11. e3 {[%emt 0:06:45]} Bc5 {[%emt 0:01:09]} 12. Nc3 {[%emt 0:00:51]} a6 {[%emt 0:02:22]} 13. b3 {[%emt 0:03:32]} c6 {[%emt 0:04:55]} 14. Na4 {[%emt 0:04:24]} Re8 {[%emt 0:06:53]} 15. Nxc5 {[%emt 0:04:36]} Qxc5 {[%emt 0:00:12]} 16. Ba3 {[%emt 0:00:06]} Qh5 {[%emt 0:03:43]} 17. Nd6 {[%emt 0:01:35]} Rd8 {[%emt 0:00:22]} 18. Rad1 {[%emt 0:02:14]} Nbd7 {[%emt 0:05:52]} 19. h3 {[%emt 0:08:24]} Nf8 {[%emt 0:06:39]} 20. Nxc8 {[%emt 0:08:29]} Rdxc8 {[%emt 0:00:17]} 21. e4 {[%emt 0:01:54]} Qg6 {[%emt 0:04:36]} 22. Kh2 {[%emt 0:04:52]} Re8 {[%emt 0:01:27]} 23. Rfe1 {[%emt 0:00:25]} Nh5 {[%emt 0:12:19]} 24. Re3 {[%emt 0:08:23]} Rad8 {[%emt 0:03:41]} 25. f4 {[%emt 0:02:52]} Nf6 {[%emt 0:06:20]} 26. Rxd8 {[%emt 0:04:18]} Rxd8 {[%emt 0:00:08]} 27. Qe2 {[%emt 0:00:21]} h5 {[%emt 0:02:27]} 28. f5 {[%emt 0:05:03]} Qg5 {[%emt 0:00:43]} 29. Be7 {[%emt 0:03:51]} Re8 {[%emt 0:06:36]} 30. Bd6 {[%emt 0:02:12]} Nd5 {[%emt 0:02:13]} 31. Rf3 {[%emt 0:00:12]} Qf6 {[%emt 0:00:45]} 32. Ba3 {[%emt 0:04:06]} Nc3 {[%emt 0:06:13]} 33. Qd3 {[%emt 0:03:28]} Nb5 {[%emt 0:01:14]} 34. Bc1 {[%emt 0:00:36]} Nd4 {[%emt 0:02:06]} 35. Rf2 {[%emt 0:01:02]} c5 {[%emt 0:01:40]} 36. h4 {[%emt 0:00:54]} Nh7 {[%emt 0:03:27]} 37. Qd1 {[%emt 0:00:56]} Nc6 {[%emt 0:01:02]} 38. Qxh5 {[%emt 0:00:22]} Ne5 {[%emt 0:01:36]} 39. Bg5 {[%emt 0:00:26]} Qc6 {[%emt 0:00:28]} 40. Qd1 {[%emt 0:00:00]} b5 {[%emt 0:00:00]} 41. Bf4 {[%emt 0:03:40]} Nf6 {[%emt 0:02:16]} 42. Re2 {[%emt 0:03:21]} c4 {[%emt 0:01:58]} 43. bxc4 {[%emt 0:01:11]} bxc4 {[%emt 0:00:10]} 44. Qd4 {[%emt 0:03:54]} Nfg4+ {[%emt 0:02:01]} 45. Kh3 {[%emt 0:01:23]} Qc7 {[%emt 0:04:25]} 46. Rd2 {[%emt 0:04:21]} Qa5 {[%emt 0:00:54]} 47. h5 {[%emt 0:04:29]} Qa3 {[%emt 0:05:44]} 48. Rc2 {[%emt 0:02:40]} Qb4 {[%emt 0:03:27]} 49. Qd1 {[%emt 0:03:31]} Qb6 {[%emt 0:01:30]} 50. Qe2 {[%emt 0:00:27]} Qg1 {[%emt 0:05:53]} 51. Bf3 {[%emt 0:01:11]} Nxf3 {[%emt 0:01:02]} 52. Qxf3 {[%emt 0:00:38]} Nf6 {[%emt 0:00:53]} 53. Rxc4 {[%emt 0:01:15]} Rd8 {[%emt 0:02:10]} 54. Rc1 {[%emt 0:01:15]} Qd4 {[%emt 0:00:21]} 55. Bg5 {[%emt 0:00:54]} Rd6 {[%emt 0:00:53]} 56. Re1 {[%emt 0:00:30]} Qb4 {[%emt 0:01:01]} 57. Re3 {[%emt 0:01:59]} Nh7 {[%emt 0:00:56]} 58. Bf4 {[%emt 0:00:36]} Rd8 {[%emt 0:00:37]} 59. e5 {[%emt 0:00:32]} Qb1 {[%emt 0:00:13]} 60. Kg4 {[%emt 0:01:30]} Re8 {[%emt 0:01:23]} 61. Qc6 {[%emt 0:01:12]} Qd1+ {[%emt 0:00:24]} 62. Rf3 {[%emt 0:00:11]} Rd8 {[%emt 0:00:14]} 63. Qxa6 {[%emt 0:00:31]} Nf8 {[%emt 0:01:56]} 64. h6 {[%emt 0:00:59]} g6 {[%emt 0:00:27]} 65. fxg6 {[%emt 0:00:38]} Qd7+ {[%emt 0:00:35]} 66. e6 {[%emt 0:00:37]} Nxe6 {[%emt 0:00:17]} 67. h7+ {[%emt 0:00:27]} Kh8 {[%emt 0:00:11]} 68. Be5+ {[%emt 0:00:33]} Ng7+ {[%emt 0:00:04]} 69. Kh4 {[%emt 0:00:43]} fxg6 {[%emt 0:01:41]} 70. Qxg6 {[%emt 0:00:23]} Qe7+ {[%emt 0:00:06]} 71. Bf6 {[%emt 0:00:32]} Rd4+ {[%emt 0:00:05]} 72. Kh3 {[%emt 0:00:33]} Qd7+ {[%emt 0:00:33]} 73. g4 {[%emt 0:00:15]} Rd1 {[%emt 0:00:51]} 74. Bxg7+ {[%emt 0:00:38]} Qxg7 {[%emt 0:00:04]} 75. Qe8+ {[%emt 0:00:03]} 1-0

[Event "Mitropa Online Cup Women 2021"]
[Site "Hybrid"]
[Date "2021.05.04"]
[Round "9.3"]
[White "Gaal, Zsoka"]
[Black "Hercog, Nusa"]
[Result "1-0"]
[ECO "A11"]
[WhiteElo "2177"]
[BlackElo "2028"]
[Annotator "NA"]
[PlyCount "79"]
[EventDate "2021.05.04"]
[EventType "team-tourn"]
[EventCountry "NET"]
[SourceTitle "playchess.com"]
[Source "ChessBase"]
[SourceQuality "1"]
[WhiteTeam "Hungary"]
[BlackTeam "Slovenia"]
[WhiteTeamCountry "HUN"]
[BlackTeamCountry "SLO"]
[TimeControl "40/5400+30:1800+30"]

1. Nf3 {[%emt 0:00:00]} d5 {[%emt 0:00:11]} 2. g3 {[%emt 0:00:05]} Nf6 {[%emt 0:00:16]} 3. Bg2 {[%emt 0:00:10]} c6 {[%emt 0:00:12]} 4. O-O {[%emt 0:00:38]} Bf5 {[%emt 0:00:26]} 5. c4 {[%emt 0:00:25]} e6 {[%emt 0:03:39]} 6. Qb3 {[%emt 0:00:52]} Qb6 {[%emt 0:01:16]} 7. d3 {[%emt 0:00:08]} Nbd7 {[%emt 0:00:50]} 8. Be3 {[%emt 0:00:58]} Bc5 {[%emt 0:04:54]} 9. Bxc5 {[%emt 0:05:57]} Nxc5 {[%emt 0:01:02]} 10. Qa3 {[%emt 0:05:16]} O-O {[%emt 0:05:03]} 11. Nbd2 {[%emt 0:04:30]} a5 {[%emt 0:06:22]} 12. Rfc1 {[%emt 0:03:40]} Ncd7 {[%emt 0:03:10]} 13. Qc3 {[%emt 0:08:42]} h6 {[%emt 0:04:42]} 14. Rab1 {[%emt 0:05:04]} c5 {[%emt 0:09:25]} 15. cxd5 {[%emt 0:06:11]} exd5 {[%emt 0:00:22]} 16. Nh4 {[%emt 0:04:55]} Bh7 {[%emt 0:03:48]} 17. e4 {[%emt 0:01:00]} dxe4 {[%emt 0:06:04]} 18. dxe4 {[%emt 0:00:39]} Rfe8 {[%emt 0:02:46]} 19. Re1 {[%emt 0:00:58]} Ng4 {[%emt 0:07:02]} 20. Nc4 {[%emt 0:02:22]} Qc7 {[%emt 0:01:12]} 21. Rbd1 {[%emt 0:01:32]} Ra6 {[%emt 0:08:16]} 22. Bh3 {[%emt 0:14:58]} h5 {[%emt 0:01:01]} 23. f3 {[%emt 0:05:29]} Nge5 {[%emt 0:00:42]} 24. Rd5 {[%emt 0:08:53]} Re7 {[%emt 0:13:06]} 25. Red1 {[%emt 0:04:12]} Ra8 {[%emt 0:10:18]} 26. a4 {[%emt 0:07:04]} b6 {[%emt 0:01:53]} 27. Nd6 {[%emt 0:02:27]} f6 {[%emt 0:03:33]} 28. Nhf5 {[%emt 0:02:17]} Bxf5 {[%emt 0:00:54]} 29. Nxf5 {[%emt 0:00:06]} Rf7 {[%emt 0:00:22]} 30. Nd6 {[%emt 0:01:51]} Re7 {[%emt 0:00:21]} 31. f4 {[%emt 0:00:19]} Ng4 {[%emt 0:00:49]} 32. Rxh5 {[%emt 0:01:15]} Nh6 {[%emt 0:00:27]} 33. Qc4+ {[%emt 0:00:57]} Kf8 {[%emt 0:01:27]} 34. Nf5 {[%emt 0:00:25]} b5 {[%emt 0:00:34]} 35. Qa2 {[%emt 0:01:20]} Rf7 {[%emt 0:00:32]} 36. Nxh6 {[%emt 0:00:09]} gxh6 {[%emt 0:00:04]} 37. Qxf7+ {[%emt 0:00:36]} Kxf7 {[%emt 0:00:12]} 38. Rxd7+ {[%emt 0:00:07]} Qxd7 {[%emt 0:00:03]} 39. Bxd7 {[%emt 0:00:06]} Kg6 {[%emt 0:00:15]} 40. Rxc5 {[%emt 0:00:00]} 1-0

[Event "Mitropa Online Cup Women 2021"]
[Site "Hybrid"]
[Date "2021.05.04"]
[Round "9.3"]
[White "Urh, Zala"]
[Black "Juhasz, Barbara"]
[Result "0-1"]
[ECO "E73"]
[WhiteElo "2173"]
[BlackElo "2250"]
[Annotator "NA"]
[PlyCount "122"]
[EventDate "2021.05.04"]
[EventType "team-tourn"]
[EventCountry "NET"]
[SourceTitle "playchess.com"]
[Source "ChessBase"]
[SourceQuality "1"]
[WhiteTeam "Slovenia"]
[BlackTeam "Hungary"]
[WhiteTeamCountry "SLO"]
[BlackTeamCountry "HUN"]
[TimeControl "40/5400+30:1800+30"]

1. d4 {[%emt 0:00:00]} Nf6 {[%emt 0:00:07]} 2. c4 {[%emt 0:00:07]} g6 {[%emt 0:00:05]} 3. Nc3 {[%emt 0:00:05]} Bg7 {[%emt 0:00:06]} 4. e4 {[%emt 0:00:06]} d6 {[%emt 0:00:06]} 5. Be2 {[%emt 0:00:10]} e5 {[%emt 0:01:56]} 6. d5 {[%emt 0:01:16]} Na6 {[%emt 0:00:05]} 7. Be3 {[%emt 0:01:55]} O-O {[%emt 0:03:08]} 8. g4 {[%emt 0:00:32]} Nc5 {[%emt 0:01:56]} 9. f3 {[%emt 0:00:22]} h5 {[%emt 0:00:45]} 10. g5 {[%emt 0:00:25]} Nh7 {[%emt 0:00:44]} 11. h4 {[%emt 0:00:21]} f6 {[%emt 0:01:10]} 12. gxf6 {[%emt 0:00:30]} Bxf6 {[%emt 0:00:35]} 13. Bf2 {[%emt 0:00:26]} Be7 {[%emt 0:00:25]} 14. Kd2 {[%emt 0:00:31]} Rf4 {[%emt 0:00:08]} 15. Qe1 {[%emt 0:00:24]} a5 {[%emt 0:03:03]} 16. b3 {[%emt 0:01:39]} Kg7 {[%emt 0:02:00]} 17. Kc2 {[%emt 0:03:21]} Bd7 {[%emt 0:09:58]} 18. Nh3 {[%emt 0:05:29]} Rxh4 {[%emt 0:06:15]} 19. Bxh4 {[%emt 0:00:52]} Bxh4 {[%emt 0:00:36]} 20. Qg1 {[%emt 0:05:31]} Qf6 {[%emt 0:23:57]} 21. f4 {[%emt 0:29:20]} exf4 {[%emt 0:01:08]} 22. Rf1 {[%emt 0:02:04]} Bxh3 {[%emt 0:00:29]} 23. Rxh3 {[%emt 0:00:18]} Bg5 {[%emt 0:01:14]} 24. Qg2 {[%emt 0:04:08]} Qe5 {[%emt 0:04:05]} 25. Rg1 {[%emt 0:07:53]} Kh6 {[%emt 0:05:42]} 26. Bf3 {[%emt 0:02:22]} Nf6 {[%emt 0:02:28]} 27. Rhh1 {[%emt 0:01:58]} Re8 {[%emt 0:05:07]} 28. Re1 {[%emt 0:00:29]} c6 {[%emt 0:02:56]} 29. dxc6 {[%emt 0:04:02]} bxc6 {[%emt 0:00:12]} 30. Re2 {[%emt 0:00:53]} Ne6 {[%emt 0:01:34]} 31. Ree1 {[%emt 0:03:08]} Nd4+ {[%emt 0:00:38]} 32. Kb2 {[%emt 0:02:39]} a4 {[%emt 0:00:53]} 33. b4 {[%emt 0:03:02]} a3+ {[%emt 0:15:10]} 34. Kxa3 {[%emt 0:00:29]} Rb8 {[%emt 0:01:54]} 35. Rb1 {[%emt 0:02:50]} Qe6 {[%emt 0:01:33]} 36. Rhg1 {[%emt 0:03:30]} Nh7 {[%emt 0:00:48]} 37. Qf1 {[%emt 0:01:40]} Bf6 {[%emt 0:01:08]} 38. Bd1 {[%emt 0:02:02]} Be5 {[%emt 0:00:14]} 39. Qd3 {[%emt 0:05:28]} Qe7 {[%emt 0:01:19]} 40. Na4 {[%emt 0:00:00]} Ng5 {[%emt 0:00:00]} 41. Rb2 {[%emt 0:10:06]} f3 {[%emt 0:11:08]} 42. Qe3 {[%emt 0:04:08]} Qf6 {[%emt 0:05:29]} 43. Rf1 {[%emt 0:03:18]} Ra8 {[%emt 0:01:35]} 44. Rbf2 {[%emt 0:02:53]} Bf4 {[%emt 0:01:21]} 45. Qd3 {[%emt 0:00:42]} Bc1+ {[%emt 0:00:08]} 46. Rb2 {[%emt 0:01:14]} Nb5+ {[%emt 0:12:05]} 47. Kb3 {[%emt 0:00:13]} Rxa4 {[%emt 0:02:10]} 48. Kxa4 {[%emt 0:00:40]} Qxb2 {[%emt 0:00:13]} 49. Qb3 {[%emt 0:00:14]} Nc3+ {[%emt 0:00:28]} 50. Ka5 {[%emt 0:00:03]} Nxd1 {[%emt 0:02:02]} 51. Rxd1 {[%emt 0:00:10]} f2 {[%emt 0:00:58]} 52. b5 {[%emt 0:00:20]} cxb5 {[%emt 0:00:44]} 53. cxb5 {[%emt 0:00:16]} Bd2+ {[%emt 0:01:05]} 54. Ka6 {[%emt 0:00:26]} Qf6 {[%emt 0:00:21]} 55. Rf1 {[%emt 0:01:04]} d5+ {[%emt 0:00:44]} 56. b6 {[%emt 0:00:06]} Nxe4 {[%emt 0:00:06]} 57. Qxd5 {[%emt 0:00:18]} Be3 {[%emt 0:00:11]} 58. Qb5 {[%emt 0:00:52]} Nc5+ {[%emt 0:00:08]} 59. Ka7 {[%emt 0:01:15]} Qf7+ {[%emt 0:00:24]} 60. b7 {[%emt 0:00:03]} Nxb7+ {[%emt 0:00:10]} 61. Ka8 {[%emt 0:00:03]} Nd6 {[%emt 0:00:18]} 0-1

[Event "Mitropa Online Cup Women 2021"]
[Site "Hybrid"]
[Date "2021.05.04"]
[Round "9.3"]
[White "Ruzic, Pia Marie"]
[Black "Terbe, Zsuzsanna"]
[Result "0-1"]
[ECO "D78"]
[WhiteElo "1990"]
[BlackElo "2186"]
[Annotator "NA"]
[PlyCount "92"]
[EventDate "2021.05.04"]
[EventType "team-tourn"]
[EventCountry "NET"]
[SourceTitle "playchess.com"]
[Source "ChessBase"]
[SourceQuality "1"]
[WhiteTeam "Slovenia"]
[BlackTeam "Hungary"]
[WhiteTeamCountry "SLO"]
[BlackTeamCountry "HUN"]
[TimeControl "40/5400+30:1800+30"]

1. c4 {[%emt 0:00:00]} c6 {[%emt 0:00:08]} 2. Nf3 {[%emt 0:00:06]} d5 {[%emt 0:00:15]} 3. d4 {[%emt 0:00:13]} Nf6 {[%emt 0:00:10]} 4. Qc2 {[%emt 0:00:31]} g6 {[%emt 0:00:41]} 5. g3 {[%emt 0:00:55]} Bg7 {[%emt 0:06:07]} 6. Bg2 {[%emt 0:00:28]} O-O {[%emt 0:01:50]} 7. O-O {[%emt 0:00:28]} dxc4 {[%emt 0:06:47]} 8. Qxc4 {[%emt 0:00:41]} Be6 {[%emt 0:00:53]} 9. Qc2 {[%emt 0:08:00]} Bf5 {[%emt 0:04:37]} 10. Qb3 {[%emt 0:08:09]} Qb6 {[%emt 0:00:35]} 11. Nc3 {[%emt 0:13:41]} Qxb3 {[%emt 0:04:06]} 12. axb3 {[%emt 0:00:04]} Nbd7 {[%emt 0:04:52]} 13. b4 {[%emt 0:07:05]} a6 {[%emt 0:00:53]} 14. Na4 {[%emt 0:02:15]} Ne8 {[%emt 0:08:42]} 15. Bf4 {[%emt 0:09:06]} h6 {[%emt 0:04:02]} 16. h4 {[%emt 0:05:26]} Nef6 {[%emt 0:13:25]} 17. Nc5 {[%emt 0:03:11]} Nxc5 {[%emt 0:00:38]} 18. bxc5 {[%emt 0:00:33]} Rad8 {[%emt 0:03:16]} 19. Be5 {[%emt 0:08:47]} Rfe8 {[%emt 0:03:37]} 20. Ra4 {[%emt 0:04:09]} Nd5 {[%emt 0:04:42]} 21. Bxg7 {[%emt 0:02:21]} Kxg7 {[%emt 0:00:18]} 22. Nd2 {[%emt 0:00:32]} Nc7 {[%emt 0:05:01]} 23. f4 {[%emt 0:10:05]} Nb5 {[%emt 0:04:12]} 24. e3 {[%emt 0:00:15]} f6 {[%emt 0:06:00]} 25. Nf3 {[%emt 0:02:43]} Be4 {[%emt 0:03:49]} 26. Raa1 {[%emt 0:00:28]} Bxf3 {[%emt 0:01:51]} 27. Rxf3 {[%emt 0:00:04]} e5 {[%emt 0:01:07]} 28. fxe5 {[%emt 0:00:05]} fxe5 {[%emt 0:00:10]} 29. Raf1 {[%emt 0:00:21]} Rd7 {[%emt 0:01:24]} 30. Bh3 {[%emt 0:02:13]} Rc7 {[%emt 0:00:44]} 31. dxe5 {[%emt 0:03:46]} Rxe5 {[%emt 0:00:26]} 32. Rc1 {[%emt 0:00:41]} Rce7 {[%emt 0:01:03]} 33. Kf2 {[%emt 0:00:54]} Nc7 {[%emt 0:02:50]} 34. Rc3 {[%emt 0:00:34]} Nd5 {[%emt 0:00:38]} 35. Rd3 {[%emt 0:03:54]} Nf6 {[%emt 0:00:40]} 36. b4 {[%emt 0:01:20]} Nd5 {[%emt 0:00:24]} 37. Rd4 {[%emt 0:02:48]} Nxe3 {[%emt 0:02:43]} 38. Rd8 {[%emt 0:00:34]} Nd5 {[%emt 0:00:57]} 39. Rff8 {[%emt 0:00:19]} Rf7+ {[%emt 0:02:28]} 40. Rxf7+ {[%emt 0:00:00]} Kxf7 {[%emt 0:00:00]} 41. Bc8 {[%emt 0:09:04]} Re7 {[%emt 0:02:23]} 42. Rd7 {[%emt 0:04:22]} Rxd7 {[%emt 0:02:34]} 43. Bxd7 {[%emt 0:00:14]} Nxb4 {[%emt 0:00:06]} 44. Ke3 {[%emt 0:00:35]} Ke7 {[%emt 0:01:31]} 45. Bh3 {[%emt 0:00:28]} a5 {[%emt 0:01:54]} 46. Kd2 {[%emt 0:01:22]} Na6 {[%emt 0:00:31]} 0-1